[Event "Titled Tuesday Blitz December 13 Early 2022"]
[White "Mestnikov, Aisen"]
[Black "Hernandez Gonzalez, William"]
[WhiteFideId "34130117"]
[BlackFideId "3509915"]
[WhiteElo "2027"]
[BlackElo "2374"]
[Result "1-0"]
[Round "02"]
[TimeControl "180+1"]
[Date "2022.12.14"]
[WhiteClock "0:00:21"]
[BlackClock "0:00:20"]

1. d4 {[%clk 0:02:59]}  Nf6 {[%clk 0:02:58]} 2. c4 {[%clk 0:03:00]}  e6 {[%clk 0:02:58]} 3. Nf3 {[%clk 0:03:00]}  Bb4+ {[%clk 0:02:57]} 4. Bd2 {[%clk 0:03:00]}  a5 {[%clk 0:02:57]} 5. g3 {[%clk 0:03:00]}  d5 {[%clk 0:02:56]} 6. Bg2 {[%clk 0:03:00]}  O-O {[%clk 0:02:56]} 7. O-O {[%clk 0:03:00]}  dxc4 {[%clk 0:02:56]} 8. Qc2 {[%clk 0:02:59]}  b5 {[%clk 0:02:55]} 9. a4 {[%clk 0:02:57]}  c6 {[%clk 0:02:44]} 10. axb5 {[%clk 0:02:55]}  Bxd2 {[%clk 0:02:44]} 11. Nfxd2 {[%clk 0:02:40]}  Qxd4 {[%clk 0:02:40]} 12. Nxc4 {[%clk 0:02:30]}  Nd5 {[%clk 0:02:36]} 13. bxc6 {[%clk 0:02:16]}  Nxc6 {[%clk 0:02:29]} 14. Nd6 {[%clk 0:01:51]}  Ncb4 {[%clk 0:02:02]} 15. Qd2 {[%clk 0:01:49]}  Qxd2 {[%clk 0:02:00]} 16. Nxd2 {[%clk 0:01:50]}  Ba6 {[%clk 0:02:00]} 17. Bf3 {[%clk 0:01:38]}  Rfd8 {[%clk 0:01:55]} 18. N6c4 {[%clk 0:01:36]}  Nc6 {[%clk 0:01:34]} 19. Nxa5 {[%clk 0:01:30]}  Nd4 {[%clk 0:01:33]} 20. Nac4 {[%clk 0:01:01]}  Bxc4 {[%clk 0:01:25]} 21. Nxc4 {[%clk 0:01:00]}  Rab8 {[%clk 0:01:25]} 22. Rfd1 {[%clk 0:00:55]}  Nxf3+ {[%clk 0:01:21]} 23. exf3 {[%clk 0:00:56]}  g6 {[%clk 0:01:15]} 24. Rab1 {[%clk 0:00:55]}  Rb3 {[%clk 0:01:14]} 25. Nd2 {[%clk 0:00:53]}  Rb4 {[%clk 0:01:14]} 26. Ne4 {[%clk 0:00:53]}  Rdb8 {[%clk 0:01:12]} 27. Rd2 {[%clk 0:00:52]}  Kg7 {[%clk 0:01:12]} 28. Rc2 {[%clk 0:00:51]}  R8b6 {[%clk 0:01:06]} 29. h4 {[%clk 0:00:51]}  h6 {[%clk 0:01:05]} 30. Rd2 {[%clk 0:00:50]}  R4b5 {[%clk 0:00:58]} 31. Rc2 {[%clk 0:00:50]}  Kg8 {[%clk 0:00:54]} 32. h5 {[%clk 0:00:44]}  g5 {[%clk 0:00:53]} 33. Kg2 {[%clk 0:00:44]}  Kg7 {[%clk 0:00:53]} 34. Nd2 {[%clk 0:00:41]}  Kf6 {[%clk 0:00:50]} 35. b3 {[%clk 0:00:41]}  Ke7 {[%clk 0:00:50]} 36. Rbc1 {[%clk 0:00:41]}  Rb7 {[%clk 0:00:48]} 37. Rc8 {[%clk 0:00:41]}  Kf6 {[%clk 0:00:47]} 38. Rh8 {[%clk 0:00:41]}  Kg7 {[%clk 0:00:47]} 39. Rcc8 {[%clk 0:00:41]}  Ne7 {[%clk 0:00:47]} 40. Rce8 {[%clk 0:00:41]}  Rd7 {[%clk 0:00:42]} 41. Ne4 {[%clk 0:00:29]}  Rxb3 {[%clk 0:00:42]} 42. Nc5 {[%clk 0:00:30]}  Rbb7 {[%clk 0:00:40]} 43. Nxb7 {[%clk 0:00:29]}  Rxb7 {[%clk 0:00:40]} 44. Rb8 {[%clk 0:00:30]}  Rc7 {[%clk 0:00:40]} 45. Rhe8 {[%clk 0:00:30]}  Nf5 {[%clk 0:00:35]} 46. Rec8 {[%clk 0:00:30]}  Ra7 {[%clk 0:00:35]} 47. Rc2 {[%clk 0:00:28]}  Kf6 {[%clk 0:00:33]} 48. Rbc8 {[%clk 0:00:29]}  Ng7 {[%clk 0:00:32]} 49. R8c7 {[%clk 0:00:29]}  Rxc7 {[%clk 0:00:32]} 50. Rxc7 {[%clk 0:00:29]}  Nxh5 {[%clk 0:00:33]} 51. Kh3 {[%clk 0:00:29]}  Kg6 {[%clk 0:00:32]} 52. Rb7 {[%clk 0:00:28]}  Nf6 {[%clk 0:00:32]} 53. Rb6 {[%clk 0:00:28]}  Nd7 {[%clk 0:00:32]} 54. Rd6 {[%clk 0:00:28]}  Ne5 {[%clk 0:00:31]} 55. Kg2 {[%clk 0:00:27]}  Nc4 {[%clk 0:00:30]} 56. Rc6 {[%clk 0:00:26]}  Ne5 {[%clk 0:00:30]} 57. Rc5 {[%clk 0:00:26]}  Kf6 {[%clk 0:00:30]} 58. Rc3 {[%clk 0:00:25]}  h5 {[%clk 0:00:30]} 59. Kh3 {[%clk 0:00:25]}  Kf5 {[%clk 0:00:30]} 60. Rc5 {[%clk 0:00:23]}  Kf6 {[%clk 0:00:31]} 61. Rc3 {[%clk 0:00:22]}  Kg6 {[%clk 0:00:31]} 62. g4 {[%clk 0:00:22]}  h4 {[%clk 0:00:30]} 63. f4 {[%clk 0:00:22]}  Nd7 {[%clk 0:00:22]} 64. fxg5 {[%clk 0:00:22]}  Kxg5 {[%clk 0:00:22]} 65. Rc7 {[%clk 0:00:19]}  Ne5 {[%clk 0:00:21]} 66. Rc5 {[%clk 0:00:19]}  f6 {[%clk 0:00:21]} 67. Ra5 {[%clk 0:00:18]}  Kf4 {[%clk 0:00:14]} 68. Kxh4 {[%clk 0:00:18]}  Kf3 {[%clk 0:00:14]} 69. Rxe5 {[%clk 0:00:17]}  fxe5 {[%clk 0:00:14]} 70. g5 {[%clk 0:00:18]}  Kxf2 {[%clk 0:00:15]} 71. g6 {[%clk 0:00:18]}  e4 {[%clk 0:00:16]} 72. g7 {[%clk 0:00:18]}  e3 {[%clk 0:00:17]} 73. g8=Q {[%clk 0:00:19]}  e2 {[%clk 0:00:18]} 74. Qg3+ {[%clk 0:00:19]}  Kf1 {[%clk 0:00:17]} 75. Qf3+ {[%clk 0:00:20]}  Ke1 {[%clk 0:00:18]} 76. Kg3 {[%clk 0:00:20]}  Kd2 {[%clk 0:00:18]} 77. Qf4+ {[%clk 0:00:20]}  Kd1 {[%clk 0:00:18]} 78. Qd4+ {[%clk 0:00:20]}  Kc2 {[%clk 0:00:19]} 79. Qe4+ {[%clk 0:00:20]}  Kd2 {[%clk 0:00:19]} 80. Qd4+ {[%clk 0:00:20]}  Kc2 {[%clk 0:00:19]} 81. Qe3 {[%clk 0:00:20]}  Kd1 {[%clk 0:00:20]} 82. Kf2 {[%clk 0:00:21]} 1-0


[Site "https://www.chess.com"]

[Event "Titled Tuesday Blitz December 13 Early 2022"]
[White "Mihailidis, Anastasios"]
[Black "Urazayev, Arystanbek"]
[WhiteFideId "4205588"]
[BlackFideId "13709810"]
[WhiteElo "2312"]
[BlackElo "2463"]
[Result "0-1"]
[Round "02"]
[TimeControl "180+1"]
[Date "2022.12.14"]
[WhiteClock "0:00:05"]
[BlackClock "0:00:55"]

1. e4 {[%clk 0:02:54]}  c5 {[%clk 0:03:00]} 2. Nf3 {[%clk 0:02:55]}  d6 {[%clk 0:03:00]} 3. d4 {[%clk 0:02:55]}  cxd4 {[%clk 0:03:01]} 4. Nxd4 {[%clk 0:02:56]}  Nf6 {[%clk 0:03:02]} 5. f3 {[%clk 0:02:56]}  e5 {[%clk 0:02:57]} 6. Nb3 {[%clk 0:02:56]}  a5 {[%clk 0:02:58]} 7. Bb5+ {[%clk 0:02:54]}  Bd7 {[%clk 0:02:57]} 8. Nc3 {[%clk 0:02:50]}  a4 {[%clk 0:02:56]} 9. Bxd7+ {[%clk 0:02:46]}  Nbxd7 {[%clk 0:02:56]} 10. Nd2 {[%clk 0:02:46]}  Qc7 {[%clk 0:02:50]} 11. O-O {[%clk 0:02:43]}  a3 {[%clk 0:02:50]} 12. Nb3 {[%clk 0:02:33]}  Be7 {[%clk 0:02:50]} 13. Kh1 {[%clk 0:02:30]}  O-O {[%clk 0:02:48]} 14. Nb5 {[%clk 0:02:25]}  Qc6 {[%clk 0:02:47]} 15. Nxa3 {[%clk 0:02:24]}  b5 {[%clk 0:02:47]} 16. c3 {[%clk 0:02:21]}  d5 {[%clk 0:02:48]} 17. exd5 {[%clk 0:02:19]}  Nxd5 {[%clk 0:02:48]} 18. Nc2 {[%clk 0:02:18]}  f5 {[%clk 0:02:48]} 19. Ne3 {[%clk 0:02:16]}  N7b6 {[%clk 0:02:43]} 20. Nxd5 {[%clk 0:02:11]}  Nxd5 {[%clk 0:02:44]} 21. Re1 {[%clk 0:02:09]}  Bf6 {[%clk 0:02:43]} 22. Qc2 {[%clk 0:02:06]}  g6 {[%clk 0:02:39]} 23. Nd2 {[%clk 0:02:01]}  Kg7 {[%clk 0:02:33]} 24. Nf1 {[%clk 0:02:02]}  Rad8 {[%clk 0:02:28]} 25. Ne3 {[%clk 0:02:01]}  Nb6 {[%clk 0:02:27]} 26. Bd2 {[%clk 0:01:56]}  Rd7 {[%clk 0:02:25]} 27. Rad1 {[%clk 0:01:56]}  Rfd8 {[%clk 0:02:26]} 28. Bc1 {[%clk 0:01:55]}  Qe6 {[%clk 0:02:24]} 29. a3 {[%clk 0:01:50]}  Bh4 {[%clk 0:02:18]} 30. Re2 {[%clk 0:01:45]}  Rxd1+ {[%clk 0:02:17]} 31. Nxd1 {[%clk 0:01:46]}  Nc4 {[%clk 0:02:18]} 32. Ne3 {[%clk 0:01:43]}  Qd7 {[%clk 0:02:01]} 33. g3 {[%clk 0:01:34]}  Bf6 {[%clk 0:01:54]} 34. Kg2 {[%clk 0:01:29]}  Qc6 {[%clk 0:01:46]} 35. b3 {[%clk 0:01:26]}  Nb6 {[%clk 0:01:46]} 36. Rd2 {[%clk 0:01:24]}  Rc8 {[%clk 0:01:46]} 37. Bb2 {[%clk 0:01:19]}  Bg5 {[%clk 0:01:42]} 38. Re2 {[%clk 0:01:16]}  Qc5 {[%clk 0:01:32]} 39. Nd1 {[%clk 0:01:03]}  Bf6 {[%clk 0:01:24]} 40. Bc1 {[%clk 0:01:01]}  Nd5 {[%clk 0:01:22]} 41. Bb2 {[%clk 0:00:45]}  h5 {[%clk 0:01:17]} 42. h4 {[%clk 0:00:44]}  f4 {[%clk 0:01:14]} 43. Nf2 {[%clk 0:00:40]}  fxg3 {[%clk 0:01:14]} 44. Ne4 {[%clk 0:00:41]}  Nf4+ {[%clk 0:01:14]} 45. Kf1 {[%clk 0:00:37]}  Qc6 {[%clk 0:01:03]} 46. Rd2 {[%clk 0:00:23]}  Qe6 {[%clk 0:01:03]} 47. Kg1 {[%clk 0:00:20]}  Be7 {[%clk 0:00:58]} 48. Rg2 {[%clk 0:00:15]}  Qh3 {[%clk 0:00:55]} 49. Rxg3 {[%clk 0:00:07]}  Bc5+ {[%clk 0:00:55]} 50. Nxc5 {[%clk 0:00:04]}  Qxg3+ {[%clk 0:00:55]} 51. Kf1 {[%clk 0:00:05]}  Qxf3+ {[%clk 0:00:55]} 52. Qf2 {[%clk 0:00:05]}  Qh3+ {[%clk 0:00:53]} 53. Ke1 {[%clk 0:00:05]}  Rxc5 {[%clk 0:00:54]} 54. Qxc5 {[%clk 0:00:05]}  Nd3+ {[%clk 0:00:54]} 55. Kd2 {[%clk 0:00:05]}  Nxc5 {[%clk 0:00:55]} 0-1


[Site "https://www.chess.com"]

[Event "Titled Tuesday Blitz December 13 Early 2022"]
[White "Mihajlov, Sebastian"]
[Black "Bacrot, Etienne"]
[WhiteFideId "1512110"]
[BlackFideId "605506"]
[WhiteElo "2464"]
[BlackElo "2667"]
[Result "1-0"]
[Round "02"]
[TimeControl "180+1"]
[Date "2022.12.14"]
[WhiteClock "0:01:00"]
[BlackClock "0:00:41"]

1. e4 {[%clk 0:03:00]}  c5 {[%clk 0:02:55]} 2. Nf3 {[%clk 0:02:53]}  d6 {[%clk 0:02:55]} 3. d4 {[%clk 0:02:54]}  cxd4 {[%clk 0:02:55]} 4. Nxd4 {[%clk 0:02:55]}  Nf6 {[%clk 0:02:56]} 5. Nc3 {[%clk 0:02:56]}  a6 {[%clk 0:02:56]} 6. f3 {[%clk 0:02:54]}  e5 {[%clk 0:02:55]} 7. Nb3 {[%clk 0:02:54]}  Be7 {[%clk 0:02:54]} 8. Be3 {[%clk 0:02:54]}  Be6 {[%clk 0:02:54]} 9. Qd2 {[%clk 0:02:51]}  Nbd7 {[%clk 0:02:54]} 10. O-O-O {[%clk 0:02:51]}  O-O {[%clk 0:02:52]} 11. g4 {[%clk 0:02:50]}  b5 {[%clk 0:02:52]} 12. g5 {[%clk 0:02:49]}  b4 {[%clk 0:02:53]} 13. Nd5 {[%clk 0:02:46]}  Nxd5 {[%clk 0:02:52]} 14. exd5 {[%clk 0:02:46]}  Bf5 {[%clk 0:02:52]} 15. h4 {[%clk 0:02:40]}  a5 {[%clk 0:02:51]} 16. Bd3 {[%clk 0:02:39]}  Bxd3 {[%clk 0:02:43]} 17. Qxd3 {[%clk 0:02:39]}  Qc7 {[%clk 0:02:42]} 18. Kb1 {[%clk 0:02:39]}  Rfc8 {[%clk 0:02:42]} 19. h5 {[%clk 0:02:39]}  a4 {[%clk 0:02:35]} 20. Nd2 {[%clk 0:02:39]}  a3 {[%clk 0:02:04]} 21. b3 {[%clk 0:02:35]}  Qc3 {[%clk 0:02:04]} 22. Qxc3 {[%clk 0:02:26]}  Rxc3 {[%clk 0:02:05]} 23. Rhe1 {[%clk 0:02:02]}  Rac8 {[%clk 0:01:52]} 24. Nc4 {[%clk 0:01:53]}  g6 {[%clk 0:01:33]} 25. h6 {[%clk 0:01:46]}  Rxe3 {[%clk 0:01:31]} 26. Rxe3 {[%clk 0:01:42]}  Bxg5 {[%clk 0:01:25]} 27. Nxd6 {[%clk 0:01:42]}  Rd8 {[%clk 0:01:13]} 28. Re4 {[%clk 0:01:28]}  Bxh6 {[%clk 0:00:44]} 29. Rxb4 {[%clk 0:01:09]}  Bf8 {[%clk 0:00:44]} 30. Nb7 {[%clk 0:01:10]}  Rb8 {[%clk 0:00:44]} 31. Rb5 {[%clk 0:01:10]}  Nc5 {[%clk 0:00:40]} 32. Rxc5 {[%clk 0:01:07]}  Rxb7 {[%clk 0:00:39]} 33. d6 {[%clk 0:01:07]}  Rd7 {[%clk 0:00:39]} 34. Rxe5 {[%clk 0:01:01]}  h5 {[%clk 0:00:39]} 35. c4 {[%clk 0:01:00]}  h4 {[%clk 0:00:40]} 36. Red5 {[%clk 0:01:00]}  h3 {[%clk 0:00:41]} 37. c5 {[%clk 0:01:01]}  h2 {[%clk 0:00:41]} 38. Rh1 {[%clk 0:01:00]}  f5 {[%clk 0:00:40]} 39. Rxh2 {[%clk 0:01:00]}  Rxd6 {[%clk 0:00:41]} 40. cxd6 {[%clk 0:01:00]} 1-0


[Site "https://www.chess.com"]

[Event "Titled Tuesday Blitz December 13 Early 2022"]
[White "Mogirzan, Matei-Valeriu"]
[Black "Ozates, Tuna"]
[WhiteFideId "1257455"]
[BlackFideId "6354521"]
[WhiteElo "1733"]
[BlackElo "2151"]
[Result "1-0"]
[Round "02"]
[TimeControl "180+1"]
[Date "2022.12.14"]
[WhiteClock "0:00:10"]
[BlackClock "0:00:48"]

1. e4 {[%clk 0:03:00]}  d6 {[%clk 0:02:55]} 2. d4 {[%clk 0:02:58]}  Nf6 {[%clk 0:02:56]} 3. Nc3 {[%clk 0:02:58]}  e5 {[%clk 0:02:54]} 4. Nf3 {[%clk 0:02:55]}  Nbd7 {[%clk 0:02:53]} 5. Bc4 {[%clk 0:02:52]}  Be7 {[%clk 0:02:54]} 6. g4 {[%clk 0:02:42]}  exd4 {[%clk 0:02:41]} 7. Nxd4 {[%clk 0:02:38]}  Ne5 {[%clk 0:02:41]} 8. Be2 {[%clk 0:02:25]}  Bxg4 {[%clk 0:02:40]} 9. f3 {[%clk 0:02:24]}  Bh3 {[%clk 0:02:28]} 10. f4 {[%clk 0:02:15]}  Nfg4 {[%clk 0:02:17]} 11. Nf5 {[%clk 0:02:03]}  Bh4+ {[%clk 0:02:13]} 12. Ng3 {[%clk 0:02:00]}  O-O {[%clk 0:01:56]} 13. fxe5 {[%clk 0:01:56]}  Nxe5 {[%clk 0:01:56]} 14. Bf4 {[%clk 0:01:52]}  Qf6 {[%clk 0:01:42]} 15. Nd5 {[%clk 0:01:48]}  Qd8 {[%clk 0:01:40]} 16. Qd2 {[%clk 0:01:42]}  c6 {[%clk 0:01:41]} 17. Nc3 {[%clk 0:01:34]}  Qa5 {[%clk 0:01:39]} 18. O-O-O {[%clk 0:01:29]}  b5 {[%clk 0:01:37]} 19. Qxd6 {[%clk 0:01:16]}  Nc4 {[%clk 0:01:28]} 20. Bxc4 {[%clk 0:01:12]}  bxc4 {[%clk 0:01:29]} 21. Nf5 {[%clk 0:00:59]}  Bxf5 {[%clk 0:01:24]} 22. exf5 {[%clk 0:01:00]}  Bf6 {[%clk 0:01:19]} 23. Ne4 {[%clk 0:00:38]}  Bxb2+ {[%clk 0:01:12]} 24. Kxb2 {[%clk 0:00:33]}  Rfe8 {[%clk 0:01:13]} 25. Nf6+ {[%clk 0:00:26]}  Kh8 {[%clk 0:01:06]} 26. Nxe8 {[%clk 0:00:26]}  c3+ {[%clk 0:00:53]} 27. Ka1 {[%clk 0:00:21]}  Rxe8 {[%clk 0:00:50]} 28. Rhe1 {[%clk 0:00:14]}  Rg8 {[%clk 0:00:49]} 29. Be5 {[%clk 0:00:11]}  f6 {[%clk 0:00:43]} 30. Bxf6 {[%clk 0:00:09]}  Qxf5 {[%clk 0:00:43]} 31. Bxg7+ {[%clk 0:00:07]}  Kxg7 {[%clk 0:00:42]} 32. Rg1+ {[%clk 0:00:07]}  Kh8 {[%clk 0:00:41]} 33. Rxg8+ {[%clk 0:00:05]}  Kxg8 {[%clk 0:00:42]} 34. Qd8+ {[%clk 0:00:05]}  Kf7 {[%clk 0:00:43]} 35. Qd7+ {[%clk 0:00:06]}  Kf6 {[%clk 0:00:41]} 36. Qxf5+ {[%clk 0:00:05]}  Kxf5 {[%clk 0:00:42]} 37. Rd3 {[%clk 0:00:06]}  Ke4 {[%clk 0:00:41]} 38. Rxc3 {[%clk 0:00:07]}  Kd5 {[%clk 0:00:42]} 39. Rh3 {[%clk 0:00:07]}  c5 {[%clk 0:00:43]} 40. Rxh7 {[%clk 0:00:08]}  Kc4 {[%clk 0:00:44]} 41. Rxa7 {[%clk 0:00:08]}  Kc3 {[%clk 0:00:45]} 42. Rc7 {[%clk 0:00:08]}  c4 {[%clk 0:00:46]} 43. h4 {[%clk 0:00:08]}  Kd2 {[%clk 0:00:46]} 44. Rxc4 {[%clk 0:00:08]}  Kc1 {[%clk 0:00:46]} 45. Rc7 {[%clk 0:00:09]}  Kd1 {[%clk 0:00:47]} 46. Rb7 {[%clk 0:00:10]}  Kc1 {[%clk 0:00:48]} 47. a4 {[%clk 0:00:10]} 1-0


[Site "https://www.chess.com"]

[Event "Titled Tuesday Blitz December 13 Early 2022"]
[White "Molina Carretero, Daniel"]
[Black "Kleiman, Jake"]
[WhiteFideId "32071914"]
[BlackFideId "2020041"]
[WhiteElo "2109"]
[BlackElo "2574"]
[Result "0-1"]
[Round "02"]
[TimeControl "180+1"]
[Date "2022.12.14"]
[WhiteClock "0:00:03"]
[BlackClock "0:00:10"]

1. c4 {[%clk 0:03:00]}  Nf6 {[%clk 0:02:59]} 2. g3 {[%clk 0:03:01]}  e6 {[%clk 0:02:59]} 3. Nf3 {[%clk 0:03:00]}  d5 {[%clk 0:03:00]} 4. b3 {[%clk 0:03:00]}  dxc4 {[%clk 0:03:00]} 5. bxc4 {[%clk 0:03:00]}  e5 {[%clk 0:03:01]} 6. Nc3 {[%clk 0:02:52]}  e4 {[%clk 0:02:46]} 7. Ng5 {[%clk 0:02:51]}  Qd4 {[%clk 0:02:47]} 8. Bg2 {[%clk 0:02:45]}  Bf5 {[%clk 0:02:03]} 9. Qb3 {[%clk 0:02:42]}  Nbd7 {[%clk 0:01:56]} 10. Qxb7 {[%clk 0:02:30]}  Rb8 {[%clk 0:01:56]} 11. Qxc7 {[%clk 0:02:24]}  Bd6 {[%clk 0:01:43]} 12. Qa5 {[%clk 0:02:16]}  Bg6 {[%clk 0:01:32]} 13. O-O {[%clk 0:02:15]}  Qxc4 {[%clk 0:01:29]} 14. Ba3 {[%clk 0:02:05]}  Bxa3 {[%clk 0:01:15]} 15. Qxa3 {[%clk 0:02:06]}  h6 {[%clk 0:01:12]} 16. Nh3 {[%clk 0:02:01]}  Qc5 {[%clk 0:01:12]} 17. Qxc5 {[%clk 0:01:51]}  Nxc5 {[%clk 0:01:13]} 18. Nf4 {[%clk 0:01:49]}  Bf5 {[%clk 0:01:13]} 19. Nfd5 {[%clk 0:01:40]}  Nxd5 {[%clk 0:01:11]} 20. Nxd5 {[%clk 0:01:41]}  Kd7 {[%clk 0:01:10]} 21. Rfc1 {[%clk 0:01:37]}  Rhc8 {[%clk 0:01:09]} 22. Ne3 {[%clk 0:01:21]}  Be6 {[%clk 0:01:09]} 23. Rc2 {[%clk 0:01:16]}  f5 {[%clk 0:01:07]} 24. Rac1 {[%clk 0:01:14]}  Na4 {[%clk 0:01:03]} 25. Rxc8 {[%clk 0:01:13]}  Rxc8 {[%clk 0:01:04]} 26. Rxc8 {[%clk 0:01:12]}  Kxc8 {[%clk 0:01:05]} 27. f3 {[%clk 0:01:07]}  exf3 {[%clk 0:01:01]} 28. Bxf3 {[%clk 0:01:08]}  Kc7 {[%clk 0:00:52]} 29. Kf2 {[%clk 0:01:05]}  Kd6 {[%clk 0:00:51]} 30. a3 {[%clk 0:00:58]}  Kc5 {[%clk 0:00:49]} 31. h4 {[%clk 0:00:55]}  g5 {[%clk 0:00:45]} 32. hxg5 {[%clk 0:00:54]}  hxg5 {[%clk 0:00:46]} 33. d3 {[%clk 0:00:31]}  Kd4 {[%clk 0:00:44]} 34. g4 {[%clk 0:00:20]}  f4 {[%clk 0:00:42]} 35. Nf5+ {[%clk 0:00:20]}  Kc3 {[%clk 0:00:28]} 36. Bc6 {[%clk 0:00:19]}  Nb6 {[%clk 0:00:26]} 37. Ng7 {[%clk 0:00:18]}  Bxg4 {[%clk 0:00:25]} 38. Ne8 {[%clk 0:00:12]}  Kd2 {[%clk 0:00:23]} 39. Bf3 {[%clk 0:00:10]}  Bf5 {[%clk 0:00:21]} 40. Nd6 {[%clk 0:00:09]}  Bg6 {[%clk 0:00:21]} 41. Ne4+ {[%clk 0:00:08]}  Bxe4 {[%clk 0:00:20]} 42. Bxe4 {[%clk 0:00:07]}  Na4 {[%clk 0:00:18]} 43. d4 {[%clk 0:00:05]}  Nc3 {[%clk 0:00:17]} 44. Bf3 {[%clk 0:00:05]}  Nd1+ {[%clk 0:00:16]} 45. Kg2 {[%clk 0:00:04]}  Ne3+ {[%clk 0:00:15]} 46. Kh3 {[%clk 0:00:04]}  Nc4 {[%clk 0:00:11]} 47. Kg4 {[%clk 0:00:02]}  Ke3 {[%clk 0:00:11]} 48. Kxg5 {[%clk 0:00:03]}  Kxd4 {[%clk 0:00:11]} 49. Kxf4 {[%clk 0:00:03]}  Nxa3 {[%clk 0:00:11]} 50. e4 {[%clk 0:00:03]}  Nc4 {[%clk 0:00:11]} 51. Be2 {[%clk 0:00:03]}  Ne5 {[%clk 0:00:11]} 52. Kf5 {[%clk 0:00:04]}  a5 {[%clk 0:00:11]} 53. Bb5 {[%clk 0:00:04]}  Nf3 {[%clk 0:00:12]} 54. Kf4 {[%clk 0:00:03]}  Nh4 {[%clk 0:00:10]} 0-1


[Site "https://www.chess.com"]

[Event "Titled Tuesday Blitz December 13 Early 2022"]
[White "Moskvin, Anatoly"]
[Black "Asavasaetakul, Chawit"]
[WhiteFideId "24199990"]
[BlackFideId "6204856"]
[WhiteElo "2104"]
[BlackElo "1919"]
[Result "0-1"]
[Round "02"]
[TimeControl "180+1"]
[Date "2022.12.14"]
[WhiteClock "0:00:19"]
[BlackClock "0:00:53"]

1. e4 {[%clk 0:03:00]}  d5 {[%clk 0:03:00]} 2. exd5 {[%clk 0:03:01]}  Nf6 {[%clk 0:03:00]} 3. c4 {[%clk 0:03:01]}  c6 {[%clk 0:02:59]} 4. Nc3 {[%clk 0:03:01]}  cxd5 {[%clk 0:03:00]} 5. cxd5 {[%clk 0:03:02]}  Nxd5 {[%clk 0:03:00]} 6. Nf3 {[%clk 0:03:03]}  Nc6 {[%clk 0:02:59]} 7. Bb5 {[%clk 0:03:03]}  Nb4 {[%clk 0:02:59]} 8. O-O {[%clk 0:02:36]}  a6 {[%clk 0:02:56]} 9. Bc4 {[%clk 0:02:36]}  Bf5 {[%clk 0:02:51]} 10. d4 {[%clk 0:02:28]}  Nc2 {[%clk 0:02:36]} 11. Be3 {[%clk 0:02:02]}  Nxa1 {[%clk 0:02:33]} 12. Qxa1 {[%clk 0:02:03]}  e6 {[%clk 0:02:33]} 13. a3 {[%clk 0:01:52]}  Bd6 {[%clk 0:02:30]} 14. d5 {[%clk 0:01:53]}  exd5 {[%clk 0:02:30]} 15. Bxd5 {[%clk 0:01:50]}  O-O {[%clk 0:02:29]} 16. Qa2 {[%clk 0:01:50]}  Rc8 {[%clk 0:02:24]} 17. Rd1 {[%clk 0:01:50]}  Qf6 {[%clk 0:02:02]} 18. Ng5 {[%clk 0:01:28]}  Bb8 {[%clk 0:01:44]} 19. Nce4 {[%clk 0:00:54]}  Bxe4 {[%clk 0:01:18]} 20. Bxe4 {[%clk 0:00:54]}  h6 {[%clk 0:01:15]} 21. Nh7 {[%clk 0:00:31]}  Qe5 {[%clk 0:01:15]} 22. Nxf8 {[%clk 0:00:26]}  Qxh2+ {[%clk 0:01:02]} 23. Kf1 {[%clk 0:00:19]}  Rxf8 {[%clk 0:01:00]} 24. Bxc6 {[%clk 0:00:20]}  bxc6 {[%clk 0:01:00]} 25. Rd7 {[%clk 0:00:20]}  Qh1+ {[%clk 0:00:59]} 26. Ke2 {[%clk 0:00:21]}  Qxg2 {[%clk 0:00:59]} 27. Qc4 {[%clk 0:00:21]}  Be5 {[%clk 0:00:55]} 28. Re7 {[%clk 0:00:20]}  Bxb2 {[%clk 0:00:54]} 29. a4 {[%clk 0:00:19]}  Bf6 {[%clk 0:00:53]} 30. Qxa6 {[%clk 0:00:18]}  Bxe7 {[%clk 0:00:53]} 31. Qc4 {[%clk 0:00:19]} 0-1


[Site "https://www.chess.com"]

[Event "Titled Tuesday Blitz December 13 Early 2022"]
[White "Muminova, Nafisa"]
[Black "Osmak, Yuliia"]
[WhiteFideId "14201526"]
[BlackFideId "14101602"]
[WhiteElo "2258"]
[BlackElo "2328"]
[Result "0-1"]
[Round "02"]
[TimeControl "180+1"]
[Date "2022.12.14"]
[WhiteClock "0:00:04"]
[BlackClock "0:00:49"]

1. e4 {[%clk 0:03:00]}  c6 {[%clk 0:02:57]} 2. d4 {[%clk 0:03:00]}  d5 {[%clk 0:02:58]} 3. e5 {[%clk 0:02:57]}  Bf5 {[%clk 0:02:57]} 4. Nf3 {[%clk 0:02:46]}  e6 {[%clk 0:02:57]} 5. Nbd2 {[%clk 0:02:45]}  Nd7 {[%clk 0:02:47]} 6. Nb3 {[%clk 0:02:45]}  Ne7 {[%clk 0:02:45]} 7. Be2 {[%clk 0:02:44]}  Rc8 {[%clk 0:02:42]} 8. Bd2 {[%clk 0:02:41]}  c5 {[%clk 0:02:40]} 9. dxc5 {[%clk 0:02:36]}  Nc6 {[%clk 0:02:39]} 10. Bf4 {[%clk 0:02:25]}  Nxc5 {[%clk 0:02:37]} 11. c3 {[%clk 0:02:15]}  Be7 {[%clk 0:02:32]} 12. O-O {[%clk 0:02:13]}  O-O {[%clk 0:02:31]} 13. Nbd4 {[%clk 0:02:13]}  Be4 {[%clk 0:02:29]} 14. Re1 {[%clk 0:01:49]}  Qb6 {[%clk 0:02:17]} 15. Qd2 {[%clk 0:01:47]}  a6 {[%clk 0:02:09]} 16. Bg5 {[%clk 0:01:44]}  Bxg5 {[%clk 0:02:02]} 17. Qxg5 {[%clk 0:01:38]}  Qxb2 {[%clk 0:02:01]} 18. Qe3 {[%clk 0:01:11]}  Na4 {[%clk 0:01:49]} 19. Rac1 {[%clk 0:00:44]}  Nxd4 {[%clk 0:01:35]} 20. cxd4 {[%clk 0:00:31]}  Rc3 {[%clk 0:01:33]} 21. Rxc3 {[%clk 0:00:20]}  Qxc3 {[%clk 0:01:30]} 22. Bd1 {[%clk 0:00:18]}  Qxe3 {[%clk 0:01:28]} 23. Rxe3 {[%clk 0:00:19]}  Nb2 {[%clk 0:01:21]} 24. Bb3 {[%clk 0:00:18]}  Rc8 {[%clk 0:01:19]} 25. Re1 {[%clk 0:00:13]}  Nd3 {[%clk 0:01:12]} 26. Rd1 {[%clk 0:00:13]}  Bxf3 {[%clk 0:01:11]} 27. gxf3 {[%clk 0:00:12]}  Nf4 {[%clk 0:01:10]} 28. h4 {[%clk 0:00:12]}  g6 {[%clk 0:01:09]} 29. Kf1 {[%clk 0:00:12]}  Rc3 {[%clk 0:01:08]} 30. Ke1 {[%clk 0:00:11]}  Rxf3 {[%clk 0:01:05]} 31. Rb1 {[%clk 0:00:08]}  b5 {[%clk 0:00:59]} 32. Kd2 {[%clk 0:00:06]}  Rd3+ {[%clk 0:00:59]} 33. Kc2 {[%clk 0:00:05]}  Rxd4 {[%clk 0:00:59]} 34. Rg1 {[%clk 0:00:04]}  h5 {[%clk 0:00:58]} 35. f3 {[%clk 0:00:05]}  b4 {[%clk 0:00:54]} 36. Ba4 {[%clk 0:00:04]}  Rc4+ {[%clk 0:00:52]} 37. Kb3 {[%clk 0:00:04]}  Nd3 {[%clk 0:00:49]} 0-1


[Site "https://www.chess.com"]